bitfinex/quotes_BTCUSD_20250623
["timestamp","ask_amount","ask_price","bid_price","bid_amount"]
[1750696369807,0.841,100210.0,100200.0,0.21696]
[1750696370066,0.841,100210.0,100190.0,0.0621]
[1750696370296,0.341,100210.0,100200.0,0.0301]
[1750696370524,0.341,100210.0,100200.0,0.24734]
[1750696370746,0.341,100210.0,100200.0,0.27784]
[1750696370962,0.341,100210.0,100200.0,0.21724]
[1750696370963,0.34,100210.0,100200.0,0.21724]
[1750696371417,0.341,100210.0,100200.0,0.21824]
[1750696371841,0.38886289,100210.0,100200.0,0.21824]
[1750696372510,0.41198056,100210.0,100200.0,0.001]
[1750696372984,0.51227995,100210.0,100200.0,0.001]
[1750696373251,0.51228145,100210.0,100200.0,0.001]
[1750696373769,0.38216654,100210.0,100200.0,0.001]
[1750696375961,0.35904887,100210.0,100200.0,0.001]
[1750696376166,0.04221163,100210.0,100200.0,0.001]
[1750696376372,0.01904887,100210.0,100200.0,0.001]
[1750696377833,0.01904887,100210.0,100200.0,0.21688]
[1750696378025,0.54223098,100210.0,100200.0,0.21688]
[1750696379104,0.54223098,100210.0,100200.0,0.001]
[1750696379329,0.54223098,100210.0,100200.0,0.21612]
[1750696380302,0.54223098,100210.0,100200.0,0.001]
[1750696380303,3.5966986,100210.0,100200.0,0.001]
[1750696380504,0.14253037,100210.0,100200.0,0.001]
[1750696380714,0.01904887,100210.0,100200.0,0.27618073]
[1750696380906,0.01904887,100210.0,100200.0,0.17687942]
[1750696381114,0.01904887,100210.0,100200.0,0.16689939]
[1750696381327,0.01904887,100210.0,100200.0,0.59152002]
[1750696381534,0.01904887,100210.0,100200.0,0.62145854]
[1750696381774,0.004,100230.0,100220.0,0.2095388]
[1750696381992,0.02211309,100230.0,100220.0,0.61035329]
[1750696382212,0.02211309,100230.0,100220.0,0.60935329]
[1750696382423,0.02211309,100230.0,100220.0,0.38085939]
[1750696382634,0.02211309,100230.0,100220.0,0.58042035]
[1750696382854,0.02211309,100230.0,100220.0,0.59039839]
[1750696383089,0.02211309,100230.0,100220.0,0.62033113]
[1750696383286,0.004,100230.0,100220.0,0.61035378]
[1750696383493,0.004,100230.0,100220.0,0.62033113]
[1750696384352,0.006,100230.0,100220.0,0.61135378]
[1750696384564,0.006,100230.0,100220.0,0.63130858]
[1750696384775,0.004,100230.0,100220.0,0.63030858]
[1750696385192,0.005,100230.0,100220.0,0.63530858]
[1750696385414,0.005,100230.0,100220.0,0.68530858]
[1750696385633,0.004,100230.0,100220.0,0.68030858]
[1750696385845,0.08227406,100270.0,100250.0,0.22942522]
[1750696385846,0.0031,100270.0,100250.0,0.22942522]
[1750696386087,0.02129454,100270.0,100260.0,0.60898172]
[1750696386303,0.00323901,100270.0,100260.0,0.60898172]
[1750696387140,0.004,100310.0,100290.0,0.0316]
[1750696387339,0.02251001,100310.0,100300.0,0.21784]
[1750696387777,0.02251001,100310.0,100300.0,0.34973939]
[1750696388236,0.02347995,100310.0,100300.0,0.13189939]
[1750696388440,0.02347995,100310.0,100300.0,0.34957939]
[1750696388883,0.00446329,100310.0,100300.0,0.34957939]
[1750696389092,0.00546329,100310.0,100300.0,0.38737939]
[1750696389318,0.00546329,100310.0,100300.0,0.58678118]
[1750696389540,0.00546329,100310.0,100300.0,0.60672086]
[1750696389751,0.00546329,100310.0,100300.0,0.60672096]
[1750696389956,0.00546329,100310.0,100300.0,0.61669035]
[1750696390188,0.00546329,100310.0,100300.0,0.62665974]
[1750696390399,0.00446329,100310.0,100300.0,0.39401035]
[1750696390650,0.00546329,100310.0,100300.0,0.69401035]
[1750696391072,0.00446329,100310.0,100300.0,0.68901045]
[1750696391278,0.00446329,100310.0,100300.0,0.65898118]
[1750696391499,0.00446329,100310.0,100300.0,0.69389025]
[1750696391500,0.00546329,100310.0,100300.0,0.69389025]
[1750696391932,0.001,100310.0,100300.0,0.69389025]
[1750696392156,0.001,100310.0,100300.0,0.74389025]
[1750696392810,0.001,100310.0,100300.0,1.43951639]
[1750696393017,0.0001,100320.0,100310.0,0.40482884]
[1750696393279,0.00023884,100320.0,100310.0,1.11000951]
[1750696393493,0.0001,100340.0,100330.0,0.22924229]
[1750696393710,0.0001,100340.0,100330.0,0.39054168]
[1750696394365,0.0001,100340.0,100330.0,0.45505939]
[1750696394610,0.0001,100340.0,100330.0,0.45509939]
[1750696394819,0.0001,100340.0,100330.0,0.10029939]
[1750696395032,0.0001,100340.0,100330.0,0.21572]
[1750696395243,0.0001,100340.0,100330.0,0.22172]
[1750696395470,0.0011,100340.0,100330.0,0.22172]
[1750696395678,0.0011,100340.0,100330.0,0.006]
[1750696395895,0.0011,100340.0,100330.0,0.22152]
[1750696396325,3.49889139,100340.0,100330.0,0.006]
[1750696396543,3.53019139,100340.0,100330.0,0.22164]
[1750696396748,3.429892,100340.0,100330.0,0.22164]
[1750696396972,3.429892,100340.0,100320.0,0.21564]
[1750696396973,2.814965,100330.0,100320.0,0.21564]
[1750696397196,0.34,100320.0,100300.0,0.210127]
[1750696397412,0.34,100320.0,100290.0,0.30063884]
[1750696397624,0.34,100320.0,100300.0,0.31581939]
[1750696397839,0.34,100320.0,100300.0,0.60076025]
[1750696398063,0.34,100320.0,100300.0,0.60076045]
[1750696398315,0.34,100330.0,100300.0,0.59079027]
[1750696398531,0.34,100330.0,100300.0,0.58082038]
[1750696398728,0.34,100330.0,100310.0,0.0332]
[1750696398943,0.34,100330.0,100310.0,0.10029939]
[1750696399190,0.34,100340.0,100290.0,0.23973884]
[1750696399426,0.34,100320.0,100300.0,0.10029939]
[1750696399667,0.34,100320.0,100310.0,0.21544]
[1750696400111,0.34,100320.0,100300.0,0.003]
[1750696400333,0.4028,100340.0,100310.0,0.21512]
[1750696400544,0.34,100320.0,100310.0,0.21512]
[1750696400808,0.34,100320.0,100310.0,0.21812]
[1750696401044,0.3713,100320.0,100310.0,0.003]
[1750696401264,0.3713,100320.0,100290.0,0.00013884]
[1750696401265,0.34,100300.0,100290.0,0.00013884]
[1750696401483,3.219465,100300.0,100290.0,0.00013884]
[1750696401713,3.33766813,100300.0,100290.0,0.00013884]
[1750696402813,0.34,100280.0,100240.0,0.0682]
[1750696403025,0.371,100280.0,100250.0,0.17857345]
[1750696403234,0.031,100280.0,100250.0,0.10029939]
[1750696403461,0.34,100260.0,100240.0,0.03546329]
[1750696403671,0.34,100260.0,100240.0,0.13576268]
[1750696403880,0.34,100260.0,100250.0,0.21492]
[1750696404106,0.34,100260.0,100240.0,0.10576268]
[1750696404343,0.0631,100300.0,100250.0,0.39337345]
[1750696404578,0.34,100290.0,100250.0,0.45787345]
[1750696404814,0.35792664,100290.0,100250.0,0.37959939]
[1750696405035,0.45822603,100290.0,100250.0,0.37959939]
[1750696405255,0.34,100270.0,100250.0,0.34759939]
[1750696405472,0.10029939,100290.0,100250.0,0.38937435]
[1750696405686,0.017936,100290.0,100250.0,0.37939939]
[1750696405925,0.34,100280.0,100250.0,0.57889938]
[1750696406145,0.001,100260.0,100250.0,0.6038492]
[1750696406573,0.34,100280.0,100250.0,0.38937445]
[1750696406798,0.001,100290.0,100260.0,0.29279995]
[1750696407009,0.001,100290.0,100270.0,0.57751779]
[1750696407238,0.001,100290.0,100280.0,0.0328]
[1750696407454,0.34,100310.0,100280.0,0.16409939]
[1750696407674,0.02,100320.0,100290.0,0.21412]
[1750696407891,0.12029939,100320.0,100290.0,0.21412]
[1750696408310,0.14350184,100320.0,100290.0,0.21412]
[1750696408529,0.14350184,100320.0,100290.0,0.37631939]
[1750696408530,0.02013874,100320.0,100290.0,0.37631939]
[1750696408750,2.663003,100330.0,100290.0,0.37631939]
[1750696408957,0.02318256,100330.0,100300.0,0.13289939]
[1750696409168,3.163003,100340.0,100310.0,0.21368]
[1750696409381,0.13239543,100340.0,100310.0,0.21368]
[1750696409589,0.47239543,100340.0,100310.0,0.21368]
[1750696410023,0.13239543,100340.0,100310.0,0.21368]
[1750696410453,0.03209604,100340.0,100310.0,0.37857939]
[1750696410662,0.00899743,100340.0,100320.0,0.10029939]
[1750696411059,0.02705557,100350.0,100330.0,0.21316]
[1750696411282,0.15947973,100350.0,100330.0,0.21316]
[1750696411722,0.03607745,100350.0,100330.0,0.21316]
[1750696411936,0.01312188,100350.0,100330.0,0.21316]
[1750696412161,0.0041,100350.0,100330.0,0.31345939]
[1750696412372,0.0041,100350.0,100330.0,0.34405939]
[1750696412595,0.0041,100350.0,100330.0,0.37515939]
[1750696412810,0.001,100340.0,100330.0,0.31345939]
[1750696413215,0.0041,100350.0,100330.0,0.37565939]
[1750696413529,0.01312774,100350.0,100330.0,0.34485939]
[1750696413751,0.01312774,100350.0,100330.0,0.31545939]
[1750696413977,0.0041,100350.0,100330.0,0.31545939]
[1750696414620,0.0041,100350.0,100330.0,0.38055939]
[1750696414838,0.01313266,100350.0,100330.0,0.38055939]
[1750696415905,0.01313266,100350.0,100330.0,0.31545939]
[1750696416331,0.34,100340.0,100330.0,0.31545939]
[1750696416565,0.34903266,100340.0,100330.0,0.37925939]
[1750696417216,0.0041,100350.0,100340.0,0.0639]
[1750696417427,0.01314442,100350.0,100340.0,0.16419939]
[1750696417852,0.01314442,100350.0,100340.0,0.38345361]
[1750696418064,0.01314442,100350.0,100340.0,0.40338483]
[1750696418335,0.0041,100350.0,100340.0,0.41335024]
[1750696418841,0.0041,100350.0,100340.0,0.16419939]
[1750696419086,0.0051,100350.0,100340.0,0.38015939]
[1750696419333,0.0051,100350.0,100340.0,0.34791939]
[1750696419569,0.0051,100350.0,100340.0,0.31621939]
[1750696420790,0.0051,100350.0,100340.0,0.31569939]
[1750696421247,0.0051,100350.0,100340.0,0.21528]
[1750696421480,0.0051,100350.0,100340.0,0.37637939]
[1750696422433,0.0051,100350.0,100340.0,0.13549939]
[1750696422651,0.0051,100350.0,100340.0,0.21496]
[1750696422868,0.0051,100350.0,100340.0,0.005]
[1750696423079,0.0051,100350.0,100340.0,0.31525939]
[1750696423938,0.0051,100350.0,100340.0,0.10529939]
[1750696424200,0.0051,100350.0,100340.0,0.31513939]
[1750696424438,0.0051,100350.0,100340.0,0.34533939]
[1750696424683,0.0051,100350.0,100340.0,0.005]
[1750696425160,0.05533647,100350.0,100340.0,0.005]
[1750696425409,0.01413407,100350.0,100340.0,0.005]
[1750696425917,0.01313407,100350.0,100330.0,0.20944]
[1750696426122,0.34,100340.0,100330.0,0.20948]
[1750696426338,2.663003,100340.0,100330.0,0.20948]
[1750696426556,0.34,100330.0,100320.0,0.1137]
[1750696426782,0.34,100330.0,100320.0,0.37331939]
[1750696426997,0.34,100330.0,100320.0,0.20924]
[1750696427236,0.35806561,100330.0,100320.0,0.20924]
[1750696427470,0.01806561,100330.0,100300.0,0.0637]
[1750696427694,0.35806561,100330.0,100310.0,0.20912]
[1750696427916,0.35806561,100330.0,100300.0,0.13233813]
[1750696428132,0.39022955,100330.0,100310.0,0.20936]
[1750696428352,0.38119515,100330.0,100310.0,0.20936]
[1750696428586,0.48149454,100330.0,100310.0,0.20936]
[1750696428849,0.49052559,100330.0,100310.0,0.20932]
[1750696429086,0.38119515,100330.0,100310.0,0.20932]
[1750696429311,0.3902277,100330.0,100310.0,0.20932]
[1750696429497,0.3902277,100330.0,100310.0,0.21116]
[1750696429998,0.01806561,100330.0,100320.0,0.16119939]
[1750696430225,0.01806561,100330.0,100320.0,0.10029939]
[1750696430446,0.01806561,100330.0,100320.0,0.20912]
[1750696430865,0.01806561,100330.0,100320.0,0.30941939]
[1750696431319,0.01806561,100330.0,100320.0,0.20912]
[1750696431532,0.35806561,100330.0,100320.0,0.20912]
[1750696431955,0.35806561,100330.0,100320.0,0.21112]
[1750696432179,0.35806561,100330.0,100320.0,0.34471939]
[1750696432412,0.01806561,100330.0,100320.0,0.37601939]
[1750696432659,0.0041,100350.0,100320.0,0.35468749]
[1750696432870,0.3712203,100350.0,100330.0,0.16339939]
[1750696433096,0.0312203,100350.0,100340.0,0.2086]
[1750696433323,0.03122939,100350.0,100340.0,0.33889939]
[1750696433539,0.03124878,100350.0,100340.0,0.3488655]
[1750696433756,0.03124878,100350.0,100340.0,0.33889939]
[1750696435101,0.03124878,100350.0,100340.0,0.30889939]
[1750696435778,0.03224878,100350.0,100340.0,0.31289939]
[1750696436002,0.22186741,100350.0,100340.0,0.004]
[1750696436217,2.96314447,100350.0,100340.0,0.004]
[1750696436462,3.39512874,100350.0,100340.0,0.004]
[1750696436678,3.3707944,100350.0,100340.0,0.004]
[1750696437332,3.39975387,100350.0,100340.0,0.004]
[1750696437552,0.34,100320.0,100310.0,0.2078]
[1750696437778,0.39045589,100320.0,100310.0,0.20756]
[1750696438212,0.39045589,100320.0,100290.0,0.00046329]
[1750696438432,0.05045589,100320.0,100290.0,0.13306268]
[1750696438647,0.05045589,100320.0,100290.0,0.37258268]
[1750696438898,0.02723665,100320.0,100300.0,0.16369939]
[1750696439142,0.02724006,100320.0,100310.0,0.2706]
[1750696439364,0.02724006,100320.0,100310.0,0.33779939]
[1750696439584,0.02824006,100320.0,100310.0,0.30749939]
[1750696439806,0.02824006,100320.0,100300.0,0.20712]
[1750696440019,0.02824106,100320.0,100300.0,0.30741939]
[1750696440243,0.02724106,100320.0,100300.0,0.30741939]
[1750696440496,0.02724106,100320.0,100290.0,0.00046329]
[1750696440702,0.55589424,100320.0,100290.0,0.00046329]
[1750696441154,0.52369424,100320.0,100290.0,0.00046329]
[1750696441340,0.52369424,100320.0,100290.0,0.16166268]
[1750696441341,0.39049485,100320.0,100290.0,0.16166268]
[1750696441595,0.34,100300.0,100290.0,0.00046329]
[1750696441822,3.12145677,100300.0,100290.0,0.00046329]
[1750696442043,0.45845377,100300.0,100290.0,0.00046329]
[1750696442265,3.15295677,100300.0,100290.0,0.00046329]
[1750696442714,3.21724732,100300.0,100290.0,0.00046329]
[1750696442928,3.20388404,100300.0,100290.0,0.00046329]
[1750696443152,3.28496416,100300.0,100290.0,0.00046329]
[1750696443366,3.26829449,100300.0,100280.0,0.0002]
[1750696443580,2.82680239,100290.0,100280.0,0.0002]
[1750696443827,0.11845377,100290.0,100280.0,0.0002]
[1750696444112,2.78145677,100290.0,100280.0,0.0002]
[1750696444336,0.11840273,100290.0,100280.0,0.0002]
[1750696444558,2.68110634,100290.0,100280.0,0.0002]
[1750696444789,2.78140573,100290.0,100280.0,0.0002]
[1750696445004,3.18490573,100290.0,100280.0,0.0002]
[1750696445732,3.16680239,100290.0,100280.0,0.0002]
[1750696446400,3.19942031,100290.0,100280.0,0.0002]
[1750696446646,3.21956069,100290.0,100280.0,0.0002]
[1750696446886,3.20601984,100290.0,100280.0,0.0012]
[1750696447154,0.36114038,100290.0,100280.0,0.0012]
[1750696447801,3.18844277,100290.0,100280.0,0.0012]
[1750696448235,0.46143977,100290.0,100280.0,0.0012]
[1750696448661,0.001,100290.0,100280.0,0.0012]
[1750696449952,0.001,100290.0,100280.0,0.0313]
[1750696450162,0.001,100290.0,100280.0,0.16289939]
[1750696450372,0.001,100290.0,100280.0,0.36973939]
[1750696450849,0.341,100290.0,100280.0,0.20792]
[1750696451274,0.34,100290.0,100280.0,0.0002]
[1750696451482,0.341,100290.0,100280.0,0.0022]
[1750696452392,0.341,100290.0,100280.0,0.16489939]
[1750696452601,0.001,100290.0,100280.0,0.16489939]
[1750696452826,0.001,100290.0,100280.0,0.0022]
[1750696453967,0.001,100290.0,100260.0,0.0002]
[1750696453968,3.003003,100280.0,100260.0,0.0002]
[1750696454262,2.663003,100270.0,100260.0,0.0002]
[1750696454512,3.16790239,100270.0,100260.0,0.0002]
[1750696454726,3.20051032,100270.0,100260.0,0.0002]
[1750696454947,3.20051032,100270.0,100240.0,0.0042]
[1750696454948,2.663003,100250.0,100240.0,0.0042]
[1750696455174,3.13640239,100250.0,100240.0,0.0042]
[1750696455388,3.16790239,100250.0,100240.0,0.0042]
[1750696455620,3.28274263,100250.0,100240.0,0.0042]
[1750696455853,3.3007714,100250.0,100240.0,0.0042]
[1750696456068,3.32387669,100250.0,100240.0,0.0042]
[1750696456279,3.065103,100240.0,100230.0,0.0002]
[1750696456501,3.2982714,100240.0,100230.0,0.00033874]
[1750696456767,3.19797201,100240.0,100230.0,0.00033874]
[1750696456981,0.34,100220.0,100200.0,0.054]
[1750696457204,0.34,100210.0,100200.0,0.05413901]
[1750696458133,3.10330239,100210.0,100200.0,0.05413901]
[1750696458636,3.1982978,100210.0,100160.0,0.36142245]
[1750696458866,0.34,100180.0,100160.0,0.32858403]
[1750696459109,0.10029939,100200.0,100160.0,0.69196147]
[1750696459422,0.10029939,100200.0,100170.0,0.0634]
[1750696459571,2.663003,100190.0,100170.0,0.0306]
[1750696459808,2.663003,100190.0,100160.0,0.66728342]
[1750696460067,0.0201226,100200.0,100180.0,0.0306]
[1750696460272,2.663003,100200.0,100180.0,0.0306]
[1750696460491,2.663003,100220.0,100180.0,0.16159939]
[1750696460714,2.76330239,100220.0,100190.0,0.0306]
[1750696460942,2.76330239,100220.0,100180.0,0.13099939]
[1750696460943,2.663003,100210.0,100180.0,0.16159939]
[1750696461373,0.001,100200.0,100170.0,0.001]
[1750696461603,0.501,100200.0,100180.0,0.10029939]
[1750696461821,0.001,100200.0,100180.0,0.16129939]
[1750696462485,0.34,100210.0,100190.0,0.0632]
[1750696462710,0.36041164,100220.0,100190.0,0.16349939]
[1750696462924,0.002,100210.0,100190.0,0.16349939]
[1750696463366,0.34,100200.0,100190.0,0.10029939]
[1750696463610,0.10029939,100210.0,100180.0,0.23826]
[1750696463837,0.001,100200.0,100180.0,0.23926]
[1750696464050,0.001,100200.0,100180.0,0.37205939]
[1750696464269,0.34,100200.0,100180.0,0.37105939]
[1750696464524,0.001,100200.0,100180.0,0.37105939]
[1750696465596,0.001,100200.0,100190.0,0.0321]
[1750696465847,0.34,100200.0,100180.0,0.23756]
[1750696466057,0.001,100200.0,100180.0,0.24162]
[1750696466273,0.001,100200.0,100180.0,0.34191939]
[1750696466490,2.663003,100210.0,100180.0,0.33991939]
[1750696466705,0.34,100200.0,100180.0,0.33991939]
[1750696466921,0.35893489,100200.0,100190.0,0.002]
[1750696467129,3.15453728,100200.0,100190.0,0.002]
[1750696467345,3.12123728,100200.0,100170.0,0.0314]
[1750696467573,0.01793489,100200.0,100170.0,0.13169939]
[1750696467781,0.01793489,100200.0,100180.0,0.001]
[1750696468849,0.01793489,100200.0,100180.0,0.13389939]
[1750696469280,3.163003,100210.0,100190.0,0.0326]
[1750696469497,2.663003,100210.0,100190.0,0.0326]
[1750696469740,0.001,100200.0,100190.0,0.0326]
[1750696470009,0.001,100200.0,100190.0,0.16409939]
[1750696470268,0.34401936,100240.0,100200.0,0.0328]
[1750696470499,2.76330239,100230.0,100200.0,0.0328]
[1750696470746,0.001,100210.0,100200.0,0.13309939]
[1750696471228,0.52025135,100230.0,100200.0,0.13309939]
[1750696471490,0.52025135,100230.0,100200.0,0.13209939]
[1750696471733,2.663003,100220.0,100190.0,0.001]
[1750696471957,0.34,100220.0,100190.0,0.10129939]
[1750696472187,0.34,100210.0,100190.0,0.001]
[1750696472428,0.47199939,100210.0,100190.0,0.001]
[1750696472670,2.663003,100200.0,100180.0,0.20752]
[1750696472906,2.663003,100200.0,100180.0,0.00013844]
[1750696473399,0.47199939,100210.0,100180.0,0.00013844]
[1750696473651,0.0316,100220.0,100180.0,0.10043783]
[1750696473871,0.341,100210.0,100190.0,0.30977939]
[1750696474092,0.341,100210.0,100190.0,0.34007939]
[1750696474316,0.34,100210.0,100190.0,0.30777939]
[1750696474535,0.34,100210.0,100190.0,0.13029939]
[1750696474734,0.001,100210.0,100200.0,0.03]
[1750696475415,0.001,100210.0,100190.0,0.13029939]
[1750696475853,0.001,100210.0,100180.0,0.20969844]
[1750696475854,0.34,100210.0,100180.0,0.03013844]
[1750696476076,0.34,100210.0,100180.0,0.33747783]
[1750696476301,0.34,100210.0,100190.0,0.001]
[1750696476302,3.13490239,100200.0,100190.0,0.001]
[1750696476518,3.13490239,100200.0,100180.0,0.00013844]
[1750696476519,3.17994324,100200.0,100180.0,0.00013844]
[1750696476735,3.034603,100190.0,100180.0,0.00013844]
[1750696476952,3.13490239,100190.0,100180.0,0.00013844]
[1750696477214,3.13490239,100190.0,100180.0,0.00113844]
[1750696477620,3.16416368,100190.0,100180.0,0.00013844]
[1750696478266,3.003003,100190.0,100180.0,0.00013844]
[1750696478479,3.13390239,100190.0,100180.0,0.00013844]
[1750696479131,3.14944324,100190.0,100180.0,0.00313844]
[1750696479346,3.20251768,100190.0,100180.0,0.00313844]
[1750696479564,3.23271768,100190.0,100180.0,0.00013844]
[1750696479789,0.34,100170.0,100160.0,0.06568245]
[1750696480018,2.663003,100170.0,100160.0,0.06568245]
[1750696481009,0.001,100170.0,100160.0,0.06768245]
[1750696481244,0.0190404,100170.0,100160.0,0.06768245]
[1750696481695,0.17304101,100170.0,100160.0,0.06768245]
[1750696481940,2.83604401,100170.0,100160.0,0.06768245]
[1750696482197,3.17604401,100170.0,100160.0,0.06768245]
[1750696482433,3.033603,100160.0,100150.0,0.0099822]
[1750696482666,3.17504401,100160.0,100150.0,0.0099822]
[1750696482882,0.38114162,100160.0,100150.0,0.0099822]
[1750696483104,0.38116186,100160.0,100150.0,0.0099822]
[1750696483316,0.0411619,100160.0,100150.0,0.0099822]
[1750696484189,3.0451649,100160.0,100150.0,0.0119822]
[1750696484633,0.3821619,100160.0,100150.0,0.0119822]
[1750696484811,0.38219922,100160.0,100150.0,0.0119822]
[1750696486412,0.38219922,100160.0,100150.0,0.0433822]
[1750696486629,0.3590404,100160.0,100150.0,0.0433822]
[1750696487292,0.0190404,100160.0,100150.0,0.0433822]
[1750696487511,0.001,100160.0,100150.0,0.17658159]
[1750696488153,0.001,100160.0,100150.0,0.14368159]
[1750696488367,0.34,100170.0,100150.0,0.14168159]
[1750696488579,0.35810748,100170.0,100150.0,0.14168159]
[1750696488834,0.001,100160.0,100150.0,0.14168159]
[1750696489052,0.001,100160.0,100150.0,0.38296685]
[1750696489268,0.001,100160.0,100150.0,0.17328159]
[1750696489480,0.4491107,100190.0,100160.0,0.0309]
[1750696489689,0.59069002,100190.0,100160.0,0.0309]
[1750696489967,0.001,100170.0,100160.0,0.0309]
[1750696490196,0.001,100170.0,100160.0,0.13119939]
[1750696490401,0.35810737,100170.0,100160.0,0.16429939]
[1750696490640,0.01810737,100170.0,100160.0,0.13339939]
[1750696490872,0.5001386,100190.0,100170.0,0.031]
[1750696490873,0.0001386,100190.0,100170.0,0.031]
[1750696491091,0.01825586,100190.0,100170.0,0.13129939]
[1750696491303,0.01825586,100190.0,100170.0,0.16249939]
[1750696491771,0.02025586,100190.0,100180.0,0.13279939]
[1750696491991,0.0021386,100190.0,100180.0,0.36394003]
[1750696492203,0.0021386,100190.0,100180.0,0.16429939]
[1750696492701,0.0001386,100190.0,100180.0,0.0325]
[1750696492950,0.04143999,100190.0,100160.0,0.27036]
[1750696493157,0.04243999,100190.0,100170.0,0.001]
[1750696493404,0.52107823,100190.0,100170.0,0.001]
[1750696493600,0.34,100170.0,100160.0,0.0325]
[1750696493815,0.35812054,100170.0,100160.0,0.0325]
[1750696494037,0.35812054,100170.0,100160.0,0.16439939]
[1750696494219,2.663003,100160.0,100150.0,0.0099822]
[1750696494471,0.38129868,100160.0,100150.0,0.0099822]
[1750696495563,0.38129868,100160.0,100150.0,0.0109822]
[1750696495782,0.38229868,100160.0,100150.0,0.0109822]
[1750696495996,0.41479868,100160.0,100150.0,0.0109822]
[1750696496247,0.51509807,100160.0,100150.0,0.0109822]
[1750696496465,3.17808864,100160.0,100150.0,0.0109822]
[1750696496699,3.2590546,100160.0,100150.0,0.0109822]
[1750696496916,3.4648946,100160.0,100150.0,0.0109822]
[1750696497348,3.4958946,100160.0,100150.0,0.0109822]
[1750696498038,3.41187716,100160.0,100150.0,0.0099822]
[1750696498254,3.41287716,100160.0,100150.0,0.0099822]
[1750696498459,3.20703716,100160.0,100150.0,0.0099822]
[1750696498672,3.41267716,100160.0,100150.0,0.0099822]
[1750696498878,3.35122864,100160.0,100150.0,0.0099822]
[1750696499095,0.41123477,100160.0,100150.0,0.0099822]
[1750696499300,0.38227374,100160.0,100150.0,0.0099822]
[1750696499510,0.49747753,100160.0,100150.0,0.0099822]
[1750696499723,3.16048053,100160.0,100150.0,0.0099822]
[1750696500417,3.26077992,100160.0,100150.0,0.0099822]
[1750696500626,3.51439515,100160.0,100150.0,0.0099822]
[1750696500845,3.55788452,100160.0,100150.0,0.0099822]
[1750696501290,3.59662765,100160.0,100150.0,0.0099822]
[1750696501517,3.56767913,100160.0,100150.0,0.0099822]
[1750696501744,3.46474512,100160.0,100150.0,0.0099822]
[1750696501962,2.83354114,100160.0,100150.0,0.0099822]
[1750696502195,2.78648053,100160.0,100150.0,0.0099822]
[1750696502414,2.80760203,100160.0,100150.0,0.0099822]
[1750696502639,0.02617814,100160.0,100150.0,0.0099822]
[1750696502858,0.003,100160.0,100150.0,0.0416822]
[1750696503075,2.663003,100160.0,100150.0,0.0416822]
[1750696503292,2.663003,100170.0,100150.0,0.0416822]
[1750696503512,2.663003,100160.0,100150.0,0.0099822]
[1750696503722,3.003003,100160.0,100150.0,0.0099822]
[1750696503945,0.34,100160.0,100150.0,0.0099822]
[1750696504800,0.37102,100160.0,100150.0,0.0099822]
[1750696504990,0.37102,100160.0,100150.0,0.0420822]
[1750696505288,0.34,100160.0,100150.0,0.0742822]
[1750696505733,0.341,100160.0,100150.0,0.0430822]
[1750696506184,0.341,100160.0,100150.0,0.0109822]
[1750696506401,3.16460553,100160.0,100150.0,0.0109822]
[1750696506620,3.22712753,100160.0,100150.0,0.0109822]
[1750696507085,3.19002583,100160.0,100150.0,0.0109822]
[1750696507324,3.44212385,100160.0,100150.0,0.0109822]
[1750696507790,3.44112385,100160.0,100150.0,0.0099822]
[1750696508017,3.47432385,100160.0,100150.0,0.0099822]
[1750696508247,3.44212385,100160.0,100150.0,0.0109822]
[1750696508483,3.59016409,100160.0,100150.0,0.0109822]
[1750696508718,2.663003,100140.0,100130.0,0.0002]
[1750696508962,0.17393347,100140.0,100130.0,0.0002]
[1750696509179,0.14163347,100140.0,100130.0,0.0002]
[1750696509874,0.3719,100130.0,100120.0,0.0061381]
[1750696510085,0.49540083,100130.0,100120.0,0.01547534]
[1750696510525,0.49019846,100130.0,100120.0,0.01547534]
[1750696510737,0.45829846,100130.0,100120.0,0.0061381]
[1750696511802,0.48797315,100130.0,100120.0,0.0061381]
[1750696512456,0.01799907,100130.0,100120.0,0.0061381]
[1750696512682,0.01999907,100130.0,100120.0,0.0061381]
[1750696512930,0.002,100130.0,100120.0,0.0061381]
[1750696513602,0.002,100130.0,100120.0,0.0366381]
[1750696514049,0.002,100130.0,100120.0,0.0061381]
[1750696514475,0.02073111,100130.0,100120.0,0.0061381]
[1750696514905,0.002,100130.0,100120.0,0.0061381]
[1750696515798,0.03234672,100130.0,100120.0,0.0061381]
[1750696516028,0.03234672,100130.0,100100.0,0.04138387]
[1750696516029,2.663003,100110.0,100100.0,0.01068387]
[1750696516258,2.663003,100110.0,100100.0,0.02000351]
[1750696516259,3.34018239,100110.0,100100.0,0.02000351]
[1750696516500,2.663003,100100.0,100090.0,0.02531152]
[1750696516954,3.15084324,100100.0,100090.0,0.02531152]
[1750696517376,3.13630239,100100.0,100090.0,0.02531152]
[1750696517585,3.23660178,100100.0,100090.0,0.02531152]
[1750696517804,3.13644078,100100.0,100090.0,0.02531152]
[1750696518020,3.10344078,100100.0,100090.0,0.02531152]
[1750696518237,3.1338158,100100.0,100090.0,0.02531152]
[1750696518876,0.37051341,100100.0,100090.0,0.02531152]
[1750696519087,0.37051341,100100.0,100090.0,0.02631152]
[1750696519088,0.4728128,100100.0,100090.0,0.02631152]
[1750696519879,0.54065008,100100.0,100090.0,0.02631152]
[1750696520159,0.4728128,100100.0,100090.0,0.02631152]
[1750696520441,3.1358158,100100.0,100090.0,0.02631152]
[1750696520712,0.37251341,100100.0,100090.0,0.02631152]
[1750696521186,0.00213839,100100.0,100090.0,0.18911091]
[1750696521634,0.00213839,100100.0,100090.0,0.02631152]
[1750696521874,3.13607683,100100.0,100090.0,0.02631152]
[1750696522083,3.11484864,100100.0,100090.0,0.02531152]
[1750696522534,0.46774978,100100.0,100090.0,0.02531152]
[1750696522749,0.34113839,100100.0,100090.0,0.02531152]
[1750696522976,0.34013839,100100.0,100090.0,0.02531152]
[1750696523202,0.34013839,100100.0,100090.0,0.05701152]
[1750696523659,0.34013839,100100.0,100090.0,0.02531152]
[1750696524380,0.34113839,100100.0,100090.0,0.02631152]
[1750696524608,0.37055971,100100.0,100090.0,0.02631152]
[1750696524842,0.34013839,100100.0,100090.0,0.02531152]
[1750696525299,0.34113839,100100.0,100090.0,0.02531152]